Cogmind - Beta 16 @@@ ROGUE MODE // 2025.11.10 @ 00:49:22 Player: Rune Result: Destroyed by G-47 Trooper with Particle Gun Performance ------------- Evolutions (2) 1000 Regions Visited (6) 1200 Robots Destroyed (20) 100 Value Destroyed (355) 355 Prototype IDs (0) 0 Alien Tech Used (0) 0 Bonus (300) 300 TOTAL SCORE: 2955 Bonus ------- Aligned with FarCom 300 Cogmind --------- Core Integrity 0/550 Matter 300/300 Energy 100/100 System Corruption 1% Temperature Cool (9) Movement Core (200) Ox3 Location -8/Materials Parts ------- > --- POWER (1) -------- (None) > --- PROPULSION (2) --- (None) > --- UTILITY (4) ------ Medium Storage Unit Advanced Terrain Scan Processor Power Shielding > --- WEAPON (4) ------- (None) > --- INVENTORY (10) --- Ion Engine Seismic Detector Particle Charger Shield Generator Peak State ------------ > --- POWER ------------ Light Ion Engine > --- PROPULSION ------- Aluminum Leg Aluminum Leg > --- UTILITY ---------- Medium Storage Unit Advanced Terrain Scan Processor Power Shielding Hardened Light Armor Plating > --- WEAPON ----------- EM Pulse Gun Particle Gun Assault Rifle Gauss Rifle > --- INVENTORY -------- Ion Engine Seismic Detector Shield Generator EM Pulse Gun [Rating: 19] Favorites ----------- Power Light Ion Engine Engine Light Ion Engine Propulsion Aluminum Leg Leg Aluminum Leg Utility Power Shielding Device Seismic Detector Storage Medium Storage Unit Processor Advanced Terrain Scan Processor Protection Power Shielding Weapon EM Pulse Gun Energy Gun EM Pulse Gun Ballistic Gun Assault Rifle Build | -11 -10 -9 -9 -9 -8 -8 ------- Run | Yrd Mat Mat Min Exi Min Mat Slots Evolved 4 | . . 2 . . . 2 Power . | . . . . . . . Propulsion . | . . . . . . . Utility 2 | . . 1 . . . 1 Weapon 2 | . . 1 . . . 1 Parts Attached 15 | 6 2 4 . . . 3 Power 1 | 1 . . . . . . Engine 1 | 1 . . . . . . Core . | . . . . . . . Reactor . | . . . . . . . Propulsion 2 | 2 . . . . . . Treads . | . . . . . . . Leg 2 | 2 . . . . . . Wheel . | . . . . . . . Hover . | . . . . . . . Flight . | . . . . . . . Utility 7 | 1 2 2 . . . 2 Device 1 | . 1 . . . . . Storage 3 | 1 1 1 . . . . Processor 1 | . . . . . . 1 Hackware . | . . . . . . . Protection 2 | . . 1 . . . 1 Artifact . | . . . . . . . Weapon 5 | 2 . 2 . . . 1 Energy Gun 3 | 1 . 2 . . . . Energy Cannon . | . . . . . . . Ballistic Gun 2 | 1 . . . . . 1 Ballistic Cannon . | . . . . . . . Launcher . | . . . . . . . Special Weapon . | . . . . . . . Impact Weapon . | . . . . . . . Slashing Weapon . | . . . . . . . Piercing Weapon . | . . . . . . . Special Melee Weapon . | . . . . . . . Unidentified Prototypes . | . . . . . . . Parts Lost 9 | . . . . . . 9 Power 1 | . . . . . . 1 Propulsion 2 | . . . . . . 2 Utility 1 | . . . . . . 1 Weapon 5 | . . . . . . 5 Highest Loss Streak 8 | . . . . . . 8 To Critical Strikes . | . . . . . . . Average Backups 6 | 1 2 3 4 8 6 4 Power 2 | . 1 1 1 3 1 1 Propulsion . | . . . . . . . Utility 2 | . . 1 2 3 3 2 Weapon 1 | . 1 . 1 2 2 . Tool/Special . | . . . . . . . Unused Backups 7 | . . . 1 3 . 3 Power 4 | . . . . 3 . 1 Propulsion . | . . . . . . . Utility 2 | . . . . . . 2 Weapon 1 | . . . 1 . . . Tool/Special . | . . . . . . . Average Slot Usage (%) 97 | . 98 99 100 99 100 82 Engine 10 | . 14 11 11 11 11 7 Leg 21 | . 28 22 22 21 22 13 Device 10 | . 12 11 11 11 11 2 Storage 11 | . 14 11 11 11 11 9 Protection 10 | . . 11 11 11 11 15 Energy Gun 20 | . 14 21 22 22 22 13 Ballistic Gun 11 | . 14 11 11 11 11 13 Peak Build Rating 19 | 6 7 10 11 12 11 19 Average Rating 11 | 4 6 9 10 11 11 15 On Entrance 8 | . 6 7 10 11 11 11 Avg Prop Armor Cover (%) . | . . . . . . . Naked Turns . | . . . . . . . Heaviest Build 31 | 12 28 22 22 22 22 31 Greatest Support 20 | 20 20 20 20 20 20 20 Greatest Overweight (x) 3 | 1 1 1 1 2 1 3 Average Overweight (x) . | . . . 1 1 1 1 Largest Inventory Capacity 15 | 8 15 10 10 10 10 10 Average Capacity 9 | 7 8 8 10 10 10 10 Most Carried 10 | 5 4 5 7 10 6 5 Average Carried 6 | 1 2 3 4 8 6 4 Final Capacity 10 | 8 8 10 10 10 10 10 Final Carried 6 | 2 4 3 6 6 6 4 Class Distribution -------------------- 76% | Tank 13% | Mutant 10% | Skirmisher Dominant Class ---------------- Mutant | -10/Materials Tank | -9/Materials Tank | -9/Mines Tank | -9/Exiles Skirmisher | -8/Mines Tank | -8/Materials Resources | -11 -10 -9 -9 -9 -8 -8 ----------- Run | Yrd Mat Mat Min Exi Min Mat Matter Collected 580 | 158 100 128 10 3 . 181 Remotely . | . . . . . . . Salvage Created 572 | . 168 159 . . . 245 Parts 43 | . 8 8 . . . 27 Haulers Intercepted . | . . . . . . . Recyclers Shooed 2 | . 1 1 . . . . Parts Field Recycled . | . . . . . . . Retrieved Matter . | . . . . . . . Parts Self-Destructed . | . . . . . . . Prevented . | . . . . . . . Parts Restored . | . . . . . . . Kills | -11 -10 -9 -9 -9 -8 -8 ------- Run | Yrd Mat Mat Min Exi Min Mat Combat Hostiles Destroyed 10 | . 2 2 . . . 6 Guns 10 | . 2 2 . . . 6 Classes Destroyed 9 | . 2 2 . . . 5 Worker 1 | . . . . . . 1 Builder 1 | . . . . . . 1 Tunneler 1 | . . . . . . 1 Recycler 2 | . 1 . . . . 1 Operator 1 | . . . . . . 1 Watcher 4 | . . 3 . . . 1 Swarmer 6 | . . . . . . 6 Grunt 2 | . 2 . . . . . Sentry 2 | . . 2 . . . . Best Kill Streak 11 | . 1 3 . . . 11 Combat Bots Only 6 | . 1 2 . . . 6 Max Kills in Single Turn 2 | . 1 1 . . . 2 Gunslinging 1 | . . . . . . 1 Exploded . | . . . . . . . Melee . | . . . . . . . Uniques/NPCs Destroyed . | . . . . . . . Combat | -11 -10 -9 -9 -9 -8 -8 -------- Run | Yrd Mat Mat Min Exi Min Mat Hostile Shots Fired 133 | . 6 6 3 . . 118 Missed 30 | . 2 1 . . . 27 Hits 103 | . 4 5 3 . . 91 Projectile 103 | . 4 5 3 . . 91 Critical Strikes 3 | . . . . . . 3 Damage Taken 1413 | . 93 76 32 . . 1212 Core 595 | . . 31 10 . . 554 Absorbed by Shields . | . . . . . . . Redirected to Shielding 17 | . . . . . . 17 Core Remaining (%) 96 | 100 100 . . . 89 . Volleys Fired 43 | . 11 11 1 . . 20 Largest 4 | . 2 3 3 . . 4 Hottest 153 | . 60 125 125 . . 153 Shots Fired 124 | . 22 33 3 . . 66 Gun 124 | . 22 33 3 . . 66 Cannon . | . . . . . . . Launcher . | . . . . . . . Special . | . . . . . . . Kinetic 61 | . 11 11 1 . . 38 Thermal 30 | . . 10 1 . . 19 Explosive . | . . . . . . . Electromagnetic 33 | . 11 12 1 . . 9 Robot Hit Streak 10 | . 10 4 1 . . 5 Robot Miss Streak 6 | . 1 3 1 . . 6 Penetration Max 1 | . . . . . . 1 Secondary Targets 3 | . . . . . . 3 Max Gunslinging Chain 1 | . . . . . . 1 Shots Hit Robots 63 | . 17 17 1 . . 28 Core Hits 30 | . 7 7 . . . 16 Critical Kills . | . . . . . . . Critical Parts Destroyed 1 | . . . . . . 1 Critical Strikes 5 | . 1 2 1 . . 1 Burn 3 | . . 2 1 . . . Destroy 1 | . . . . . . 1 Corrupt 1 | . 1 . . . . . Melee Attacks . | . . . . . . . Impact . | . . . . . . . Slashing . | . . . . . . . Piercing . | . . . . . . . Sneak Attacks . | . . . . . . . Combat Hostiles . | . . . . . . . Follow-up Attacks . | . . . . . . . Damage Inflicted 1151 | . 288 278 17 . . 568 Guns 1081 | . 223 278 17 . . 563 Cannons . | . . . . . . . Explosions 65 | . 65 . . . . . Melee . | . . . . . . . Ramming 5 | . . . . . . 5 Kinetic 572 | . 102 101 . . . 369 Thermal 323 | . 65 92 17 . . 149 Explosive . | . . . . . . . Electromagnetic 251 | . 121 85 . . . 45 Impact . | . . . . . . . Slashing . | . . . . . . . Piercing . | . . . . . . . Highest Corruption . | . . . . . . . Average Corruption . | . . . . . . . Corruption Purged . | . . . . . . . Corruption Blocked . | . . . . . . . Overload Shots . | . . . . . . . Overflow Damage . | . . . . . . . Projectiles . | . . . . . . . Explosions . | . . . . . . . Melee . | . . . . . . . Knockbacks . | . . . . . . . Impact . | . . . . . . . Kinetic . | . . . . . . . Secondary . | . . . . . . . Self-Inflicted Damage 45 | . 43 . . . . 2 Shots 1 | . 1 . . . . . Rammed 4 | . . . . . . 4 Targets Rammed 4 | . . . . . . 4 Kicked . | . . . . . . . Crushed . | . . . . . . . Highest Temperature 520 | . 30 202 60 . . 520 Average Temperature 206 | . 19 97 33 . . 300 Received Heat Transfer 642 | . 30 18 18 . . 576 Effects 17 | . . . . . . 17 Shutdowns 4 | . . . . . . 4 Energy Bleed 1 | . . . . . . 1 Interference 2 | . . . . . . 2 Matter Decay 1 | . . . . . . 1 Damage (minor) 1 | . . . . . . 1 Damage (major) 8 | . . . . . . 8 Siege Activations . | . . . . . . . Martial Activations . | . . . . . . . Shielding Activations . | . . . . . . . Robots Disrupted . | . . . . . . . Combat Hostiles . | . . . . . . . Robots Corrupted . | . . . . . . . Combat Hostiles . | . . . . . . . Parts Fried . | . . . . . . . Impact Corruptions . | . . . . . . . Robots Melted . | . . . . . . . Combat Hostiles . | . . . . . . . Parts Melted 2 | . . 1 . . . 1 Heat Transferred 901 | . 50 370 111 . . 370 Parts Sabotaged . | . . . . . . . Parts Stolen . | . . . . . . . Parts Stripped . | . . . . . . . Power Chain Reactions 1 | . 1 . . . . . Alert | -11 -10 -9 -9 -9 -8 -8 ------- Run | Yrd Mat Mat Min Exi Min Mat Maximum Alert Level . | . . . . . . . Low Security (%) 100 | 100 100 100 100 . 100 100 Level 1 . | . . . . . . . Level 2 . | . . . . . . . Level 3 . | . . . . . . . Level 4 . | . . . . . . . Level 5 . | . . . . . . . High Security . | . . . . . . . Max Security . | . . . . . . . Peak Influence 118 | . 60 57 6 . . 118 Initial 10 | . . 10 6 . . . Average 14 | . 21 16 . . . 30 Influence Increases 349 | . 75 86 . . . 188 Destroy 0b10 Robot/C 200 | . 40 40 . . . 120 Destroy 0b10 Robot/NC 50 | . 5 15 . . . 30 Destroy Leader 58 | . 10 26 . . . 22 Successful Hack 5 | . . 5 . . . . Disable Machine 15 | . 15 . . . . . Destroy Structure 6 | . 5 . . . . 1 Lose Combat Pursuer 15 | . . . . . . 15 Influence Decreases 346 | . 50 94 17 . . 185 Entered New Map 26 | . . 15 11 . . . Time Decay 230 | . 50 79 6 . . 95 Lost Part 90 | . . . . . . 90 Squads Dispatched 4 | . . 1 1 . . 2 Investigation 2 | . . . 1 . . 1 Extermination . | . . . . . . . Reinforcement 2 | . . 1 . . . 1 Assault . | . . . . . . . Garrison . | . . . . . . . Intercept . | . . . . . . . Searches Triggered . | . . . . . . . Construction Impeded . | . . . . . . . Haulers Reinforced . | . . . . . . . Active Scanning Responses . | . . . . . . . Cargo Convoy Interrupts . | . . . . . . . Stealth | -11 -10 -9 -9 -9 -8 -8 --------- Run | Yrd Mat Mat Min Exi Min Mat Distress Signals 3 | . . 2 . . . 1 Communications Jammed . | . . . . . . . Distress Signals . | . . . . . . . Times Spotted 32 | . 3 6 2 . . 21 Peak Tracking Total 7 | . 2 3 2 . . 7 Tactical Retreats 1 | . . . . . . 1 Traps | -11 -10 -9 -9 -9 -8 -8 ------- Run | Yrd Mat Mat Min Exi Min Mat Traps Triggered 1 | . . . . . . 1 Indirectly . | . . . . . . . Trap Hack Attempts . | . . . . . . . Triggered . | . . . . . . . Disarmed . | . . . . . . . Reprogrammed . | . . . . . . . Reused . | . . . . . . . Traps Extracted . | . . . . . . . Installed . | . . . . . . . Triggered . | . . . . . . . Machines | -11 -10 -9 -9 -9 -8 -8 ---------- Run | Yrd Mat Mat Min Exi Min Mat Machines Disabled 1 | . 1 . . . . . Max in Single Turn 1 | . 1 . . . . . Machines Repaired . | . . . . . . . Machines Dismantled . | . . . . . . . Machines Sabotaged . | . . . . . . . Overloaded Fab Kills . | . . . . . . . Hacking | -11 -10 -9 -9 -9 -8 -8 --------- Run | Yrd Mat Mat Min Exi Min Mat Machines Accessed 6 | . . 1 1 3 . 1 Terminals 1 | . . 1 . . . . Fabricators . | . . . . . . . Repair Stations . | . . . . . . . Recycling Units . | . . . . . . . Scanalyzers 1 | . . . . . . 1 Garrison Access . | . . . . . . . Total Hacks 33 | . . 2 1 26 . 4 Successful 32 | . . 2 1 26 . 3 Failed 1 | . . . . . . 1 Catastrophic . | . . . . . . . Database Lockouts . | . . . . . . . Manual 1 | . . . . 1 . . Terminals 2 | . . 2 . . . . Fabricators . | . . . . . . . Repair Stations . | . . . . . . . Recycling Units . | . . . . . . . Scanalyzers 4 | . . . . . . 4 Garrison Access . | . . . . . . . Terminal Hacks 29 | . . 2 1 26 . . Record 26 | . . . . 26 . . Open Door 1 | . . . 1 . . . Locate Traps 1 | . . 1 . . . . Zone Layout 1 | . . 1 . . . . Fabricator Hacks . | . . . . . . . Repair Station Hacks . | . . . . . . . Recycling Unit Hacks . | . . . . . . . Scanalyzer 3 | . . . . . . 3 Insert Component 3 | . . . . . . 3 Garrison Access Hacks . | . . . . . . . Unauthorized Hacks . | . . . . . . . Terminals . | . . . . . . . Fabricators . | . . . . . . . Repair Stations . | . . . . . . . Recycling Units . | . . . . . . . Scanalyzers . | . . . . . . . Garrison Access . | . . . . . . . Data Cores Recovered 1 | . . . . . . 1 Used . | . . . . . . . Hacking Detections 1 | . . . . . . 1 Full Trace Events . | . . . . . . . Feedback Events . | . . . . . . . Feedback Blocked . | . . . . . . . Robot Schematics Acquired . | . . . . . . . Robots Built . | . . . . . . . Authchips . | . . . . . . . Time . | . . . . . . . Total Robot Build Rating . | . . . . . . . Part Schematics Acquired . | . . . . . . . Parts Built . | . . . . . . . Authchips . | . . . . . . . Time . | . . . . . . . Total Part Build Rating . | . . . . . . . Part Studies Acquired . | . . . . . . . Parts Repaired . | . . . . . . . Time . | . . . . . . . Parts Recycled . | . . . . . . . Recycled Matter . | . . . . . . . Retrieved Matter . | . . . . . . . Retrieved Components . | . . . . . . . Parts Scanalyzed . | . . . . . . . Part Schematics Acquired . | . . . . . . . Parts Damaged . | . . . . . . . Bothacking | -11 -10 -9 -9 -9 -8 -8 ------------ Run | Yrd Mat Mat Min Exi Min Mat Used RIF Installer . | . . . . . . . Robots Hacked . | . . . . . . . Non-combat . | . . . . . . . Combat . | . . . . . . . Robot Hacks Applied . | . . . . . . . Relay Couplers Released . | . . . . . . . Fabnet Peak Effective % . | . . . . . . . Robots Rewired . | . . . . . . . Allies Hacked . | . . . . . . . Hacks Repelled . | . . . . . . . Allies | -11 -10 -9 -9 -9 -8 -8 -------- Run | Yrd Mat Mat Min Exi Min Mat Total Allies . | . . . . . . . Largest Group . | . . . . . . . Highest-Rated Group . | . . . . . . . Highest-Rated Ally . | . . . . . . . Total Orders . | . . . . . . . Ally Attacks . | . . . . . . . Total Damage . | . . . . . . . Kills . | . . . . . . . Allies Corrupted . | . . . . . . . Allies Melted . | . . . . . . . Intel | -11 -10 -9 -9 -9 -8 -8 ------- Run | Yrd Mat Mat Min Exi Min Mat Active Infowar (turns) 2385 | . 208 236 134 1451 276 80 Seismic 2385 | . 208 236 134 1451 276 80 Robot Analysis Total . | . . . . . . . Derelict Logs Recovered 1 | . . . 1 . . . Drone Launches . | . . . . . . . Drone Recoveries . | . . . . . . . Exploration | -11 -10 -9 -9 -9 -8 -8 ------------- Run | Yrd Mat Mat Min Exi Min Mat Turns Passed 2700 | 74 219 236 134 1451 276 310 Spaces Moved 1438 | 55 144 151 67 758 146 117 Core 38 | 12 . . . . . 26 Treads . | . . . . . . . Legs 1400 | 43 144 151 67 758 146 91 Wheels . | . . . . . . . Hover . | . . . . . . . Flight . | . . . . . . . Fastest Speed 50 | 50 120 120 190 190 190 190 Average Speed 173 | 111 121 124 190 190 190 192 Slowest Speed 260 | 190 190 190 190 260 190 260 Overloaded Moves . | . . . . . . . Propulsion Burnouts . | . . . . . . . Robots Hopped . | . . . . . . . Potential Cave-ins . | . . . . . . . Cave-ins Triggered . | . . . . . . . Exploration Rate (%) 29 | 3 23 23 11 92 37 17 Regions Visited 6 Branch Regions 3 Pre-discovered Areas . | . . . . . . . Known Exits Taken . | . . . . . . . Unknown Exits Taken 6 | 1 1 1 1 1 1 . Scrap Searched 1 | . . . 1 . . . Spaces Dug . | . . . . . . . Terrain Destroyed 8 | . 7 . . . . 1 Melee . | . . . . . . . Projectile 1 | . . . . . . 1 AOE 7 | . 7 . . . . . Terrain Rammed . | . . . . . . . Walls Destroyed . | . . . . . . . Machines Disabled . | . . . . . . . Actions | -11 -10 -9 -9 -9 -8 -8 --------- Run | Yrd Mat Mat Min Exi Min Mat Total 1548 | 68 166 176 72 768 145 153 Wait 15 | . 4 5 . . . 6 Move 1432 | 54 143 150 66 757 145 117 Hop . | . . . . . . . Pick Up 23 | 8 3 3 4 4 . 1 Fast Attach . | . . . . . . . Attach 19 | 6 3 4 . 2 . 4 Detach 5 | . 2 1 . 1 . 1 Swap . | . . . . . . . Drop 7 | . . 2 1 4 . . Fire 43 | . 11 11 1 . . 20 Melee . | . . . . . . . Ram 4 | . . . . . . 4 Kick . | . . . . . . . Crush . | . . . . . . . Escape Stasis . | . . . . . . . Rewire . | . . . . . . . Trap . | . . . . . . . Miscellaneous . | . . . . . . . Route ------- -11/Scrapyard -10/Materials -9/Materials -9/Mines -9/Exiles -8/Mines -8/Materials History --------- Turn | Location | Event 23 | -11/Scrapyard | Discovered new exit (range 16) 75 | -11/Scrapyard | Entered Materials 269 | -10/Materials | Discovered new exit (range 16) 294 | -10/Materials | Entered another Materials area 294 | -9/Materials | Evolved 2 slots: Utility x1, Weapon x1 351 | -9/Materials | Discovered new exit (range 10) 496 | -9/Materials | Met 8R-AWN 530 | -9/Materials | Entered Mines 553 | -9/Mines | Learned Materials emergency access door positions 566 | -9/Mines | Met a Derelict shopkeep closing up shop 590 | -9/Mines | Build established: Tank 656 | -9/Mines | Deemed a non-threat by the Exiles lab entrance 656 | -9/Mines | Discovered new exit (range 5) 664 | -9/Mines | Entered Exiles 728 | -9/Exiles | Welcomed by 8R-AWN 774 | -9/Exiles | Met EX-HEX 949 | -9/Exiles | Met EX-DEC 1051 | -9/Exiles | Discovered new exit (range 10) 1186 | -9/Exiles | Met EX-BIN 1424 | -9/Exiles | Aligned with FarCom system 1426 | -9/Exiles | Given EX-Vault access code 1622 | -9/Exiles | Visited The Gauntlet 2115 | -9/Exiles | Entered Mines 2338 | -8/Mines | Discovered new exit (range 9) 2391 | -8/Mines | Entered Materials 2391 | -8/Materials | Evolved 2 slots: Utility x1, Weapon x1 2651 | -8/Materials | Core integrity fell below 50% 2667 | -8/Materials | Lost 8 parts (1p2n1u4w) 2690 | -8/Materials | Core integrity fell below 20% 2701 | -8/Materials | Destroyed by G-47 Trooper with Particle Gun Last Messages --------------- Particle Gun destroyed. Lgt. Ion Engine destroyed. M-13 Machinist repairs G-47 Trooper. K-01 Serf collects debris. Gauss Rifle destroyed. Aluminum Leg destroyed. Triggered Alarm Trap. An alarm sounds. ALERT: Alarm triggered, dispatching investigation squad. U-05 Engineer lays Concrete. K-01 Serf collects debris. M-13 Machinist repairs O-16 Technician Hover Unit. U-05 Engineer lays Concrete. K-01 Serf collects debris. U-05 Engineer lays Concrete. K-01 Serf collects debris. Slammed into G-47 Trooper. Destabilizing: System corrupted (+1). Map ----- +----------------------------------------------------+ | ??????# # # """ ????????????????????? | | ??????# | # [#??! #???????????????????? | | ??????# ?# [ #???? ] #???????????????????? | | ??????# ?#= #??????####???????????????????? | | ??????#######+## =#?????????????????????????????? | | ?????????????? # * #?????????????????????????????? | | ???????????????+ |!########??????????????????????? | | ???????????????#! = #??????????????????????? | | ???????????????#!!* #??????????????????????? | | ???????????????# =""" #?????g????????????????? | | ???????????????# %""" #??????????????????????? | | ???????????????# """ #??????? #?????????????? | | ???????????##### #????? ##????????????? | | ???????????#!! ##### ##???????????? | | ???????????#!! gC ??????????? | | ???????????#!! ??????????? | | ???????????#!! ??????????? | | ???????????#[[ #####+###### #????????????? | | ???????????#[[ ## #??? #?????????????? | | ???????????#####w ##"""g #???????????????????? | | ???????????????# ##""" ! #???????????????????? | | ???????????????# ##"""g #???????????????????? | | ???????????????# ## #???????????????????? | | ???????????????# ?#"""gY #???????????????????? | | ???????????????# ?#""" #???????????????????? | | ???????????????# ?#"""g@g *#???????????????????? | | ???????????????# ?# %%%* #???????????????????? | | ????????????????? ??##########???????????????????? | | ?????????????????????????????????????????????????? | | ?????????????????????????????????????????????????? | | ?????????????????????????????????????????????????? | | ?????????????????????????????????????????????????? | | ?????????????????????????????????????????????????? | | ?????????????????????????????????????????????????? | | ?????????????????????????????????????????????????? | | ?????????????????????????????????????????????????? | | ?????????????????????????????????????????????????? | | ?????????????????????????????????????????????????? | | ?????????????????????????????????????????????????? | | ?????????????????????????????????????????????????? | | ?????????????????????????????????????????????????? | | ?????????????????????????????????????????????????? | | ?????????????????????????????????????????????????? | | ?????????????????????????????????????????????????? | | ?????????????????????????????????????????????????? | | ?????????????????????????????????????????????????? | | ?????????????????????????????????????????????????? | | ?????????????????????????????????????????????????? | | ?????????????????????????????????????????????????? | | ?????????????????????????????????????????????????? | +----------------------------------------------------+ Best States ------------- Heat Dissipation 31 Energy Generation 10 Energy Capacity 125 Matter Stores 300 Matter Capacity 300 Sight Range 16 Terrain Scan Density 210 Armor Coverage 150 Power Shielding 33 Evasion (%) 55 Item Schematics ----------------- None Robot Schematics ------------------ None Fabricated ------------ Nothing Repaired ---------- Nothing Studied --------- None Alien Tech Used ----------------- None Achievements -------------- Deductive Reasoning Follow The Leader Librarian Sixth Sense Well Done Challenges ------------ None Game ------ Seed SigixModifiedReplica Manual? 0 Play Time 00:32:16 Cumulative 11.7 hours Start 2025.11.10 @ 00:16:09 End 2025.11.10 @ 00:49:22 Sessions 1 Manual Loads 0 Difficulty Rogue Special Mode None Game No. 40 Rogue 40 Adventurer 0 Explorer 0 Win Type - Total 0 Types 0/0/0/0/0/0/0/0/0/0 Lore% 4 Gallery% 11 Achievement% 8 Wizard Run 0 Options --------- Layout 1 ASCII 0 Keyboard 1 Movement Numpad Keybinds 0 Fullscreen 1 Font 32/SmallcapsGlow Map View 50x35 Zoom Use 0% Tactical HUD 0 Map Filters NONE Filters NONE Steam 1 RUN: c1d52d21-b5df-4a2f-999b-eb405303c11b